[Event "Live Chess"]
[Site "Chess.com"]
[Date "2023.09.16"]
[Round "-"]
[White "zezemito921"]
[Black "fernanndodod"]
[Result "0-1"]
[WhiteElo "916"]
[BlackElo "1944"]
[TimeControl "900+5"]
[EndTime "7:50:53 PDT"]
[Termination "fernanndodod venceu por xeque-mate"]

1. e4 {[%clk 0:15:03.4]} 1... e5 {[%clk 0:15:02.9]} 2. Nf3 {[%clk 0:15:04.5]}
2... Nc6 {[%clk 0:15:06.2]} 3. Be2 {[%clk 0:15:07.5]} 3... Nf6 {[%clk
0:15:09.8]} 4. d3 {[%clk 0:15:10]} 4... Bc5 {[%clk 0:15:12.9]} 5. O-O {[%clk
0:15:12.4]} 5... d6 {[%clk 0:15:17.2]} 6. Bg5 {[%clk 0:15:13.5]} 6... O-O {[%clk
0:15:21.5]} 7. Bxf6 {[%clk 0:15:16.9]} 7... Qxf6 {[%clk 0:15:24.8]} 8. c3 {[%clk
0:15:11]} 8... Bg4 {[%clk 0:15:24.5]} 9. Na3 {[%clk 0:14:57.6]} 9... Rad8 {[%clk
0:15:16.6]} 10. Nb5 {[%clk 0:14:56]} 10... Qe7 {[%clk 0:15:15]} 11. d4 {[%clk
0:14:45.8]} 11... exd4 {[%clk 0:15:17.3]} 12. cxd4 {[%clk 0:14:48.9]} 12... Bb6
{[%clk 0:15:21]} 13. d5 {[%clk 0:14:43.1]} 13... Bxf3 {[%clk 0:15:22.1]} 14.
Bxf3 {[%clk 0:14:44.6]} 14... Ne5 {[%clk 0:15:24.6]} 15. Na3 {[%clk 0:14:33.6]}
15... Qg5 {[%clk 0:15:25.1]} 16. Nb5 {[%clk 0:14:26.1]} 16... f5 {[%clk
0:15:24.5]} 17. Rc1 {[%clk 0:14:10.8]} 17... Rd7 {[%clk 0:15:16.4]} 18. g3
{[%clk 0:13:41.5]} 18... Re7 {[%clk 0:15:14.2]} 19. h4 {[%clk 0:13:41.9]} 19...
Qxg3+ {[%clk 0:15:13.1]} 20. Kh1 {[%clk 0:13:37.1]} 20... Qh3+ {[%clk
0:15:15.2]} 21. Kg1 {[%clk 0:13:40.2]} 21... Nxf3+ {[%clk 0:15:18.8]} 22. Qxf3
{[%clk 0:13:40.1]} 22... Qxf3 {[%clk 0:15:23.7]} 23. Rc3 {[%clk 0:13:26.7]}
23... Qg4+ {[%clk 0:15:22.5]} 24. Kh1 {[%clk 0:13:29]} 24... Rxe4 {[%clk
0:15:24.8]} 25. Nxc7 {[%clk 0:13:28.6]} 25... Qxh4+ {[%clk 0:15:25.5]} 26. Kg2
{[%clk 0:13:26.9]} 26... Rf6 {[%clk 0:15:23.1]} 27. Nb5 {[%clk 0:13:00.2]} 27...
Rg6+ {[%clk 0:15:25]} 28. Kf3 {[%clk 0:13:02.9]} 28... Qf4# {[%clk 0:15:26.2]}
0-1

[Event "Live Chess"]
[Site "Chess.com"]
[Date "2023.09.16"]
[Round "-"]
[White "ArthurMPRJ"]
[Black "Mozart5501"]
[Result "1-0"]
[WhiteElo "1489"]
[BlackElo "1758"]
[TimeControl "900+5"]
[EndTime "7:52:02 PDT"]
[Termination "ArthurMPRJ venceu por desistência"]

1. d4 {[%clk 0:15:03.8]} 1... Nf6 {[%clk 0:15:03]} 2. c4 {[%clk 0:15:08.2]} 2...
g6 {[%clk 0:15:07.4]} 3. f3 {[%clk 0:15:11.8]} 3... Bg7 {[%clk 0:15:11.8]} 4. e4
{[%clk 0:15:15.3]} 4... d6 {[%clk 0:15:16.2]} 5. Nc3 {[%clk 0:15:19.4]} 5... O-O
{[%clk 0:15:19.4]} 6. Nge2 {[%clk 0:15:23.9]} 6... e5 {[%clk 0:15:20.1]} 7. Bg5
{[%clk 0:15:25.7]} 7... h6 {[%clk 0:15:23.1]} 8. Be3 {[%clk 0:15:28.7]} 8... Nh5
{[%clk 0:15:25.7]} 9. Qd2 {[%clk 0:15:27.1]} 9... exd4 {[%clk 0:15:28.7]} 10.
Nxd4 {[%clk 0:15:29.7]} 10... Nd7 {[%clk 0:15:18.2]} 11. Be2 {[%clk 0:15:27.6]}
11... g5 {[%clk 0:15:11.1]} 12. Nf5 {[%clk 0:15:20.9]} 12... Ne5 {[%clk
0:15:06.9]} 13. Nxg7 {[%clk 0:15:15]} 13... Nxg7 {[%clk 0:15:09.6]} 14. Bd4
{[%clk 0:15:05.1]} 14... f5 {[%clk 0:15:06]} 15. O-O-O {[%clk 0:15:05.6]} 15...
Qe7 {[%clk 0:14:57.8]} 16. Nd5 {[%clk 0:15:04.4]} 16... Qd7 {[%clk 0:14:58.1]}
17. Qc3 {[%clk 0:14:38.9]} 17... Re8 {[%clk 0:14:37.5]} 18. Nf6+ {[%clk
0:14:40.1]} 1-0

[Event "Live Chess"]
[Site "Chess.com"]
[Date "2023.09.16"]
[Round "-"]
[White "ravypintodiniz"]
[Black "Giulliajapa007"]
[Result "1-0"]
[WhiteElo "2063"]
[BlackElo "991"]
[TimeControl "900+5"]
[EndTime "7:52:16 PDT"]
[Termination "ravypintodiniz venceu por xeque-mate"]

1. e4 {[%clk 0:15:03.5]} 1... e5 {[%clk 0:15:03.4]} 2. Nf3 {[%clk 0:15:06.8]}
2... Nc6 {[%clk 0:15:07.1]} 3. Bb5 {[%clk 0:15:09.6]} 3... a6 {[%clk 0:15:10.4]}
4. Ba4 {[%clk 0:15:13.6]} 4... b5 {[%clk 0:15:11.5]} 5. Bb3 {[%clk 0:15:18.2]}
5... Bc5 {[%clk 0:15:08.4]} 6. O-O {[%clk 0:15:22.2]} 6... Nf6 {[%clk
0:15:11.5]} 7. Nxe5 {[%clk 0:15:26.4]} 7... Nxe5 {[%clk 0:15:14.5]} 8. d4 {[%clk
0:15:31]} 8... Bxd4 {[%clk 0:15:08.1]} 9. Qxd4 {[%clk 0:15:35.9]} 9... Nc6
{[%clk 0:15:10.4]} 10. Qd1 {[%clk 0:15:33.6]} 10... O-O {[%clk 0:15:09.6]} 11.
Bg5 {[%clk 0:15:33]} 11... h6 {[%clk 0:15:03.5]} 12. Bh4 {[%clk 0:15:36.2]}
12... g5 {[%clk 0:14:42.2]} 13. Bg3 {[%clk 0:15:35.1]} 13... Nxe4 {[%clk
0:14:45.5]} 14. Qh5 {[%clk 0:15:35.4]} 14... Kg7 {[%clk 0:14:44.6]} 15. h4
{[%clk 0:15:34.2]} 15... Nxg3 {[%clk 0:14:47.1]} 16. fxg3 {[%clk 0:15:37.5]}
16... d6 {[%clk 0:14:39.1]} 17. Rxf7+ {[%clk 0:15:39.4]} 17... Rxf7 {[%clk
0:14:37.8]} 18. Qxf7+ {[%clk 0:15:44.3]} 18... Kh8 {[%clk 0:14:41.1]} 19. Nc3
{[%clk 0:15:48]} 19... Bf5 {[%clk 0:14:32.7]} 20. Qxf5 {[%clk 0:15:50.8]} 20...
Ne7 {[%clk 0:14:34.6]} 21. Qf6+ {[%clk 0:15:52.6]} 21... Kh7 {[%clk 0:14:37.1]}
22. Rf1 {[%clk 0:15:52.9]} 22... Qf8 {[%clk 0:14:25.4]} 23. Qxf8 {[%clk
0:15:55.9]} 23... Rxf8 {[%clk 0:14:28.5]} 24. Rxf8 {[%clk 0:16:00.8]} 24... Kg7
{[%clk 0:14:32.4]} 25. Rf7+ {[%clk 0:16:04.6]} 25... Kg6 {[%clk 0:14:34.8]} 26.
Rxe7 {[%clk 0:16:09.5]} 26... Kf6 {[%clk 0:14:38.7]} 27. Rxc7 {[%clk 0:16:13.9]}
27... Ke5 {[%clk 0:14:40.9]} 28. Rc6 {[%clk 0:16:18.8]} 28... d5 {[%clk
0:14:43.2]} 29. Rxa6 {[%clk 0:16:23.7]} 29... d4 {[%clk 0:14:46.7]} 30. Re6+
{[%clk 0:16:27]} 30... Kf5 {[%clk 0:14:49.7]} 31. Ne2 {[%clk 0:16:31.4]} 31...
d3 {[%clk 0:14:47.8]} 32. cxd3 {[%clk 0:16:33.4]} 32... b4 {[%clk 0:14:50.8]}
33. Kf2 {[%clk 0:16:37.4]} 33... gxh4 {[%clk 0:14:53.6]} 34. Kf3 {[%clk
0:16:39.8]} 34... Kg5 {[%clk 0:14:57.1]} 35. Nf4 {[%clk 0:16:37.1]} 35... Kf5
{[%clk 0:15:00.2]} 36. g4+ {[%clk 0:16:39.7]} 36... Kg5 {[%clk 0:15:03.1]} 37.
Rg6# {[%clk 0:16:44.4]} 1-0

[Event "Live Chess"]
[Site "Chess.com"]
[Date "2023.09.16"]
[Round "-"]
[White "Abofado"]
[Black "augustodemoraisrocha"]
[Result "0-1"]
[WhiteElo "569"]
[BlackElo "1446"]
[TimeControl "900+5"]
[EndTime "7:52:37 PDT"]
[Termination "augustodemoraisrocha venceu por desistência"]

1. e4 {[%clk 0:15:04]} 1... e5 {[%clk 0:15:03.8]} 2. Nf3 {[%clk 0:15:06.2]} 2...
Nc6 {[%clk 0:15:08.3]} 3. d4 {[%clk 0:15:08.1]} 3... exd4 {[%clk 0:15:12]} 4. c3
{[%clk 0:15:09.6]} 4... dxc3 {[%clk 0:15:16]} 5. bxc3 {[%clk 0:15:10.3]} 5...
Bd6 {[%clk 0:15:09.9]} 6. Ng5 {[%clk 0:15:10.1]} 6... Nf6 {[%clk 0:14:49.4]} 7.
Bb2 {[%clk 0:15:09.7]} 7... h6 {[%clk 0:14:51.8]} 8. Nf3 {[%clk 0:14:59.1]} 8...
Nxe4 {[%clk 0:14:53.6]} 9. Bc4 {[%clk 0:14:55.6]} 9... Qe7 {[%clk 0:14:53.7]}
10. Nbd2 {[%clk 0:14:55.5]} 10... Nxc3+ {[%clk 0:14:51.7]} 11. Qe2 {[%clk
0:14:46.2]} 11... Nxe2 {[%clk 0:14:53.7]} 12. Bxe2 {[%clk 0:14:48.8]} 12... Bb4
{[%clk 0:14:55.8]} 13. a3 {[%clk 0:14:51.2]} 13... Bxd2+ {[%clk 0:14:59]} 14.
Kxd2 {[%clk 0:14:51.5]} 14... d6 {[%clk 0:15:01]} 15. Kc2 {[%clk 0:14:54.8]}
15... Bf5+ {[%clk 0:15:03.6]} 16. Bd3 {[%clk 0:14:56.4]} 16... Qe2+ {[%clk
0:15:03.9]} 17. Nd2 {[%clk 0:14:54]} 17... Qxd3+ {[%clk 0:15:02.6]} 0-1

[Event "Live Chess"]
[Site "Chess.com"]
[Date "2023.09.16"]
[Round "-"]
[White "KBT2007"]
[Black "kslusk"]
[Result "1-0"]
[WhiteElo "1905"]
[BlackElo "857"]
[TimeControl "900+5"]
[EndTime "7:52:38 PDT"]
[Termination "KBT2007 venceu por desistência"]

1. d4 {[%clk 0:15:03.2]} 1... Nf6 {[%clk 0:15:02.9]} 2. c4 {[%clk 0:15:07.2]}
2... e6 {[%clk 0:15:07]} 3. Nf3 {[%clk 0:15:10.8]} 3... d5 {[%clk 0:15:09.8]} 4.
cxd5 {[%clk 0:15:13.9]} 4... exd5 {[%clk 0:15:13.6]} 5. g3 {[%clk 0:15:17.8]}
5... Nc6 {[%clk 0:15:17.4]} 6. Bg2 {[%clk 0:15:22.3]} 6... Bg4 {[%clk
0:15:21.4]} 7. O-O {[%clk 0:15:21.2]} 7... Bd6 {[%clk 0:15:24]} 8. Nc3 {[%clk
0:15:20.3]} 8... O-O {[%clk 0:15:23]} 9. Bg5 {[%clk 0:15:20]} 9... Be6 {[%clk
0:15:23.4]} 10. e4 {[%clk 0:14:55]} 10... h6 {[%clk 0:15:15.4]} 11. Bxf6 {[%clk
0:14:58]} 11... gxf6 {[%clk 0:15:15.2]} 12. exd5 {[%clk 0:15:01.7]} 12... Bg4
{[%clk 0:15:16.2]} 13. dxc6 {[%clk 0:15:04]} 13... bxc6 {[%clk 0:15:19.7]} 14.
Qd3 {[%clk 0:15:01.3]} 14... Bxf3 {[%clk 0:15:17.1]} 15. Qxf3 {[%clk 0:15:02]}
15... c5 {[%clk 0:15:02.7]} 16. dxc5 {[%clk 0:15:05.4]} 16... Bxc5 {[%clk
0:15:05.4]} 17. Rad1 {[%clk 0:15:07.9]} 17... Qe7 {[%clk 0:15:08.8]} 18. Rfe1
{[%clk 0:15:10.9]} 1-0

[Event "Live Chess"]
[Site "Chess.com"]
[Date "2023.09.16"]
[Round "-"]
[White "Ggavioli"]
[Black "vitinho_lawliet"]
[Result "1-0"]
[WhiteElo "1555"]
[BlackElo "922"]
[TimeControl "900+5"]
[EndTime "7:53:37 PDT"]
[Termination "Ggavioli venceu por desistência"]

1. e4 {[%clk 0:15:04.1]} 1... e5 {[%clk 0:15:03.3]} 2. Nf3 {[%clk 0:15:08.2]}
2... Nc6 {[%clk 0:15:06.2]} 3. Bb5 {[%clk 0:15:11]} 3... Qf6 {[%clk 0:15:05.4]}
4. Nc3 {[%clk 0:15:13.1]} 4... a6 {[%clk 0:15:00.8]} 5. Nd5 {[%clk 0:15:15]}
5... Qd6 {[%clk 0:15:02.8]} 6. Bxc6 {[%clk 0:15:15.1]} 6... bxc6 {[%clk
0:15:01.2]} 7. Ne3 {[%clk 0:15:14.3]} 7... Nf6 {[%clk 0:14:59.6]} 8. d3 {[%clk
0:15:16.9]} 8... c5 {[%clk 0:15:02.7]} 9. Nc4 {[%clk 0:15:18.3]} 9... Qe6 {[%clk
0:15:03.3]} 10. Ng5 {[%clk 0:15:19.3]} 10... Qc6 {[%clk 0:14:58.2]} 11. Nxe5
{[%clk 0:15:15.4]} 11... Qb5 {[%clk 0:14:45.8]} 12. Ngf3 {[%clk 0:15:04.4]}
12... d6 {[%clk 0:14:42.8]} 13. a4 {[%clk 0:15:07.3]} 13... Qb4+ {[%clk
0:14:43.3]} 14. c3 {[%clk 0:15:08.7]} 14... Qb7 {[%clk 0:14:43.4]} 15. Nc4
{[%clk 0:15:10.5]} 15... d5 {[%clk 0:14:45.7]} 16. exd5 {[%clk 0:15:12.4]} 16...
Qxd5 {[%clk 0:14:47.6]} 17. O-O {[%clk 0:15:15.8]} 17... Ng4 {[%clk 0:14:43.9]}
18. Re1+ {[%clk 0:15:15.4]} 18... Be6 {[%clk 0:14:46.6]} 19. h3 {[%clk
0:15:13.5]} 19... Nf6 {[%clk 0:14:21.5]} 20. Ne3 {[%clk 0:15:06.4]} 20... Qc6
{[%clk 0:14:10.5]} 21. d4 {[%clk 0:15:08.7]} 21... cxd4 {[%clk 0:14:10.1]} 22.
Nxd4 {[%clk 0:15:13.6]} 22... Qb6 {[%clk 0:14:12]} 23. Nxe6 {[%clk 0:15:17.1]}
23... Qxe6 {[%clk 0:14:14.7]} 24. Nc4 {[%clk 0:15:17.1]} 24... Rd8 {[%clk
0:14:18.7]} 25. Rxe6+ {[%clk 0:15:20.5]} 25... fxe6 {[%clk 0:14:20.8]} 26. Qe2
{[%clk 0:15:24.4]} 26... Nd5 {[%clk 0:14:22.1]} 27. Qxe6+ {[%clk 0:15:28.2]}
27... Ne7 {[%clk 0:14:24.2]} 28. Ne5 {[%clk 0:15:27.6]} 28... Rd1+ {[%clk
0:14:18]} 29. Kh2 {[%clk 0:15:31.1]} 29... Rd5 {[%clk 0:14:16]} 30. Qf7+ {[%clk
0:15:19.8]} 30... Kd8 {[%clk 0:14:18.4]} 31. Bf4 {[%clk 0:15:17.8]} 31... c6
{[%clk 0:14:02.4]} 32. c4 {[%clk 0:15:07]} 32... Rd4 {[%clk 0:14:01.2]} 33.
Nxc6+ {[%clk 0:14:59.8]} 33... Nxc6 {[%clk 0:14:01.7]} 34. Qc7+ {[%clk
0:14:55.8]} 34... Ke8 {[%clk 0:14:02.1]} 35. Qxc6+ {[%clk 0:14:55.2]} 35... Kf7
{[%clk 0:13:59.2]} 36. Qf3 {[%clk 0:14:52.2]} 36... Ke6 {[%clk 0:13:54.8]} 37.
Re1+ {[%clk 0:14:54.4]} 37... Kd7 {[%clk 0:13:55.5]} 38. Qg4+ {[%clk 0:14:55.9]}
38... Kd8 {[%clk 0:13:58.1]} 39. Bg5+ {[%clk 0:15:00.1]} 39... Kc7 {[%clk
0:13:58.7]} 40. Qxd4 {[%clk 0:15:04.1]} 40... Bd6+ {[%clk 0:14:00.4]} 41. g3
{[%clk 0:15:05]} 41... Rb8 {[%clk 0:14:04.6]} 42. Qxg7+ {[%clk 0:15:07.8]} 42...
Kc6 {[%clk 0:14:07.3]} 43. Re6 {[%clk 0:15:10.9]} 43... Rxb2 {[%clk 0:14:09.9]}
44. Qxb2 {[%clk 0:15:14.3]} 1-0

[Event "Live Chess"]
[Site "Chess.com"]
[Date "2023.09.16"]
[Round "-"]
[White "VIAJEMCENTRODATERRA"]
[Black "Edson_Zarnelli"]
[Result "1-0"]
[WhiteElo "2004"]
[BlackElo "788"]
[TimeControl "900+5"]
[EndTime "7:53:55 PDT"]
[Termination "VIAJEMCENTRODATERRA venceu por desistência"]

1. d4 {[%clk 0:15:00.7]} 1... d5 {[%clk 0:15:03.5]} 2. c4 {[%clk 0:15:01.9]}
2... e6 {[%clk 0:15:06.9]} 3. Nc3 {[%clk 0:15:04.4]} 3... Bb4 {[%clk 0:15:10]}
4. cxd5 {[%clk 0:14:58.1]} 4... Bxc3+ {[%clk 0:15:11.5]} 5. bxc3 {[%clk
0:15:01.2]} 5... exd5 {[%clk 0:15:15.6]} 6. Nf3 {[%clk 0:15:02.6]} 6... Nf6
{[%clk 0:15:17.3]} 7. e3 {[%clk 0:15:03.8]} 7... O-O {[%clk 0:15:20.4]} 8. Qc2
{[%clk 0:15:05]} 8... g6 {[%clk 0:15:15.8]} 9. Bd3 {[%clk 0:14:56.1]} 9... Ne4
{[%clk 0:15:14.2]} 10. Bxe4 {[%clk 0:14:53.9]} 10... dxe4 {[%clk 0:15:17.9]} 11.
Qxe4 {[%clk 0:14:51.4]} 11... Nd7 {[%clk 0:15:11.5]} 12. Qc2 {[%clk 0:14:51.5]}
12... Nf6 {[%clk 0:15:13.6]} 13. O-O {[%clk 0:14:54.6]} 13... Bf5 {[%clk
0:15:16.7]} 14. Qd1 {[%clk 0:14:34.3]} 14... Ne4 {[%clk 0:15:11.2]} 15. Bb2
{[%clk 0:14:35.7]} 15... Qd6 {[%clk 0:15:04.6]} 16. Nd2 {[%clk 0:14:30.1]} 16...
Nxd2 {[%clk 0:15:06.9]} 17. Qxd2 {[%clk 0:14:34.3]} 17... Bd7 {[%clk 0:14:59.4]}
18. a4 {[%clk 0:14:35.8]} 18... a5 {[%clk 0:15:01.7]} 19. Ba3 {[%clk 0:14:38.8]}
19... Qd5 {[%clk 0:14:43.5]} 20. Bxf8 {[%clk 0:14:41.6]} 20... Rxf8 {[%clk
0:14:47.3]} 21. Rfc1 {[%clk 0:14:45.4]} 21... Bc6 {[%clk 0:14:49.9]} 22. f3
{[%clk 0:14:45.6]} 22... b5 {[%clk 0:14:40.3]} 23. e4 {[%clk 0:14:41.2]} 23...
Qb3 {[%clk 0:14:38]} 24. axb5 {[%clk 0:14:42.9]} 24... Bxb5 {[%clk 0:14:41.3]}
25. Rcb1 {[%clk 0:14:32.3]} 25... Qe6 {[%clk 0:14:34]} 26. Rxb5 {[%clk
0:14:31.9]} 26... c6 {[%clk 0:14:31.7]} 27. Rbxa5 {[%clk 0:14:33.9]} 1-0

[Event "Live Chess"]
[Site "Chess.com"]
[Date "2023.09.16"]
[Round "-"]
[White "xadrecarloso"]
[Black "icarohm"]
[Result "0-1"]
[WhiteElo "940"]
[BlackElo "1875"]
[TimeControl "900+5"]
[EndTime "7:53:56 PDT"]
[Termination "icarohm venceu por desistência"]

1. d4 {[%clk 0:15:03.5]} 1... d5 {[%clk 0:15:01.7]} 2. Bf4 {[%clk 0:15:07.7]}
2... Bf5 {[%clk 0:15:03.7]} 3. e3 {[%clk 0:15:11.1]} 3... e6 {[%clk 0:15:06.7]}
4. Bd3 {[%clk 0:15:14.7]} 4... Bxd3 {[%clk 0:15:07.5]} 5. Qxd3 {[%clk
0:15:17.6]} 5... c5 {[%clk 0:15:11.6]} 6. c4 {[%clk 0:15:15.2]} 6... dxc4 {[%clk
0:15:08.4]} 7. Qxc4 {[%clk 0:15:18.9]} 7... cxd4 {[%clk 0:15:11.4]} 8. exd4
{[%clk 0:15:00.9]} 8... Nc6 {[%clk 0:15:12.9]} 9. Nf3 {[%clk 0:14:57.5]} 9...
Nf6 {[%clk 0:15:12.2]} 10. Nc3 {[%clk 0:14:57.2]} 10... Be7 {[%clk 0:15:12.4]}
11. Nb5 {[%clk 0:14:58.7]} 11... O-O {[%clk 0:15:12.2]} 12. Nc7 {[%clk
0:14:45.3]} 12... Rc8 {[%clk 0:15:13.7]} 13. Ng5 {[%clk 0:14:35.5]} 13... Rxc7
{[%clk 0:15:12.6]} 14. Bxc7 {[%clk 0:14:36.6]} 14... Qxc7 {[%clk 0:15:16.5]} 15.
O-O-O {[%clk 0:14:10.7]} 15... Qf4+ {[%clk 0:15:12.5]} 16. Kb1 {[%clk
0:13:56.3]} 16... Qxg5 {[%clk 0:15:14.5]} 17. Rd3 {[%clk 0:13:56.5]} 17... Qxg2
{[%clk 0:15:08.3]} 18. Re1 {[%clk 0:13:49.6]} 18... Qxf2 {[%clk 0:14:49.9]} 19.
Rde3 {[%clk 0:13:44.1]} 19... Nd5 {[%clk 0:14:49.9]} 20. R1e2 {[%clk 0:13:38.9]}
20... Qf1+ {[%clk 0:14:50]} 21. Re1 {[%clk 0:13:42.2]} 21... Qxc4 {[%clk
0:14:51.2]} 22. b3 {[%clk 0:13:21.4]} 22... Qxd4 {[%clk 0:14:52.5]} 23. Re4
{[%clk 0:13:17.4]} 23... Nc3+ {[%clk 0:14:55.5]} 24. Kc2 {[%clk 0:13:14.6]}
24... Nxe4 {[%clk 0:14:58.8]} 0-1

[Event "Live Chess"]
[Site "Chess.com"]
[Date "2023.09.16"]
[Round "-"]
[White "abaakate"]
[Black "lucasportolelis"]
[Result "0-1"]
[WhiteElo "1905"]
[BlackElo "1732"]
[TimeControl "900+5"]
[EndTime "7:54:00 PDT"]
[Termination "lucasportolelis venceu por desistência"]

1. d4 {[%clk 0:15:04]} 1... d5 {[%clk 0:15:03]} 2. c4 {[%clk 0:15:07]} 2... e6
{[%clk 0:15:06.1]} 3. Nf3 {[%clk 0:15:08.7]} 3... f5 {[%clk 0:15:09.9]} 4. cxd5
{[%clk 0:15:04.8]} 4... exd5 {[%clk 0:15:12.2]} 5. Bf4 {[%clk 0:15:09]} 5... c6
{[%clk 0:15:10.6]} 6. Nbd2 {[%clk 0:15:11.3]} 6... Nf6 {[%clk 0:15:13.4]} 7. Ne5
{[%clk 0:15:10.4]} 7... Nbd7 {[%clk 0:15:06.5]} 8. Ndf3 {[%clk 0:14:58.6]} 8...
Be7 {[%clk 0:15:04.1]} 9. Qc2 {[%clk 0:14:58]} 9... O-O {[%clk 0:14:41.4]} 10.
e3 {[%clk 0:14:30.3]} 10... Ne4 {[%clk 0:14:39.9]} 11. Bd3 {[%clk 0:14:30.3]}
11... Bb4+ {[%clk 0:14:38.1]} 12. Ke2 {[%clk 0:14:28.9]} 12... Ndf6 {[%clk
0:14:31.8]} 13. a3 {[%clk 0:14:27.5]} 13... Be7 {[%clk 0:14:31.2]} 14. Bxe4
{[%clk 0:14:15.9]} 14... Nxe4 {[%clk 0:14:27.1]} 15. Nd2 {[%clk 0:14:03.6]}
15... g5 {[%clk 0:13:32.8]} 16. Nxe4 {[%clk 0:14:05.8]} 16... dxe4 {[%clk
0:13:20.5]} 17. Bg3 {[%clk 0:14:05.8]} 17... f4 {[%clk 0:13:20.3]} 18. exf4
{[%clk 0:13:41.3]} 18... gxf4 {[%clk 0:13:22.7]} 19. Qxe4 {[%clk 0:13:27]} 19...
fxg3 {[%clk 0:13:25.1]} 20. hxg3 {[%clk 0:13:31.9]} 20... Bf5 {[%clk 0:13:25.2]}
21. Qe3 {[%clk 0:13:25.9]} 21... Bg5 {[%clk 0:13:04.8]} 22. Qb3+ {[%clk
0:13:26.2]} 22... Qd5 {[%clk 0:12:52.1]} 23. Qxb7 {[%clk 0:12:31]} 23... Qe4+
{[%clk 0:12:48.3]} 24. Kf1 {[%clk 0:12:27]} 24... Qxd4 {[%clk 0:12:16.7]} 25. f4
{[%clk 0:11:56.1]} 25... Qxe5 {[%clk 0:12:04.4]} 0-1